fUSD/lending_fUSD_20241030
["ID","MTS","AMOUNT","RATE_DAILY","PERIOD"]
[341070721,1730329848692,-152.54865041,0.00044061,30]
[341070722,1730329848701,-500.0,0.00044061,30]
[341070723,1730329848710,-295.94,0.00044061,30]
[341070724,1730329848720,-500.0,0.00044061,30]
[341070725,1730329848729,-537.4321402,0.00044061,30]
[341070726,1730329848738,-500.0,0.00044061,30]
[341070727,1730329848747,-535.81,0.00044061,30]
[341070728,1730329848756,-500.0,0.00044061,30]
[341070729,1730329848765,-360.91186981,0.00044061,30]
[341070730,1730329848775,-500.0,0.00044061,30]
[341070731,1730329848784,-500.0,0.00044061,30]
[341070732,1730329848793,-183.42842791,0.00044061,30]
[341070733,1730329848802,-551.8070718,0.00044061,30]
[341070734,1730329848811,-540.21666429,0.00044061,30]
[341070735,1730329848820,-595.61766352,0.00044061,30]
[341070736,1730329848830,-510.10486333,0.00044061,30]
[341070737,1730329848839,-421.145505,0.00044061,30]
[341070738,1730329848848,-529.83034256,0.00044061,30]
[341070739,1730329848857,-553.90682065,0.00044061,30]
[341070740,1730329848867,-565.77642488,0.00044061,30]
[341070741,1730329848876,-500.0,0.00044061,30]
[341070742,1730329848885,-509.53555854,0.00044061,30]
[341070743,1730329848894,-500.0,0.00044061,30]
[341070744,1730329848903,-500.0,0.00044061,30]
[341070745,1730329848913,-596.83,0.00044061,30]
[341070746,1730329848922,-536.63096458,0.00044061,30]
[341070747,1730329848931,-520.72602788,0.00044061,30]
[341070748,1730329848941,-500.0,0.00044061,30]
[341070749,1730329848950,-500.0,0.00044061,30]
[341070750,1730329848960,-508.0797175,0.00044061,30]
[341070751,1730329848969,-533.66611924,0.00044061,30]
[341070752,1730329848979,-500.0,0.00044061,30]
[341070753,1730329848988,-500.0,0.00044061,30]
[341070754,1730329848997,-455.26,0.00044061,30]
[341070755,1730329849006,-506.68203204,0.00044061,30]
[341070756,1730329849016,-536.52357033,0.00044061,30]
[341070757,1730329849025,-500.0,0.00044061,30]
[341070758,1730329849034,-536.14141527,0.00044061,30]
[341070759,1730329849043,-508.73398585,0.00044061,30]
[341070760,1730329849052,-208.10913268,0.00044061,30]
[341070761,1730329849061,-500.0,0.00044061,30]
[341070762,1730329849071,-540.38134982,0.00044061,30]
[341070763,1730329849080,-537.99997247,0.00044061,30]
[341070764,1730329849089,-518.04966543,0.00044061,30]
[341070765,1730329849098,-514.99233751,0.00044061,30]
[341070766,1730329849107,-513.00280857,0.00044061,30]
[341070767,1730329849116,-531.47467856,0.00044061,30]
[341070768,1730329849125,-647.83805444,0.00044061,30]
[341070769,1730329849134,-605.63,0.00044061,30]
[341070770,1730329849143,-1681.37,0.00044061,2]
[341070771,1730329849152,-1681.37,0.00044061,2]
[341070772,1730329849161,-1681.37,0.00044061,2]
[341070773,1730329849170,-1681.37,0.00044061,2]
[341070775,1730329849179,-1681.37,0.00044061,2]
[341070777,1730329849188,-1681.37,0.00044061,2]
[341070779,1730329849198,-500.0,0.00044061,30]
[341070781,1730329849207,-1681.37,0.00044061,2]
[341070783,1730329849217,-586.71551741,0.00044061,30]
[341070785,1730329849226,-1681.37,0.00044061,2]
[341070787,1730329849236,-500.0,0.00044061,30]
[341070789,1730329849245,-1681.37,0.00044061,2]
[341070791,1730329849255,-1681.37,0.00044061,2]
[341070793,1730329849264,-1681.37,0.00044061,2]
[341070795,1730329849274,-1681.37,0.00044061,2]
[341070797,1730329849283,-1681.37,0.00044061,2]
[341070799,1730329849292,-1681.37,0.00044061,2]
[341070801,1730329849301,-1681.37,0.00044061,2]
[341070802,1730329849311,-523.74675358,0.00044061,30]
[341070804,1730329849321,-1681.37,0.00044061,2]
[341070806,1730329849330,-508.79041113,0.00044061,30]
[341070808,1730329849339,-1681.37,0.00044061,2]
[341070810,1730329849348,-1681.37,0.00044061,2]
[341070812,1730329849357,-1681.37,0.00044061,2]
[341070814,1730329849366,-1681.37,0.00044061,2]
[341070816,1730329849377,-1681.37,0.00044061,2]
[341070818,1730329849386,-1681.37,0.00044061,2]
[341070820,1730329849395,-1681.37,0.00044061,2]
[341070822,1730329849405,-516.16092983,0.00044061,30]
[341070824,1730329849414,-1681.58729896,0.00044061,2]
[341070826,1730329849424,-500.0,0.00044061,30]
[341070828,1730329849434,-368.31826193,0.00044061,30]
[341070830,1730329849443,-533.06568794,0.00044061,30]
[341070832,1730329849453,-500.0,0.00044061,30]
[341070833,1730329849464,-523.120843,0.00044061,30]
[341070834,1730329849478,-500.0,0.00044061,30]
[341070835,1730329849487,-586.35945204,0.00044061,30]
[341070836,1730329849497,-500.0,0.00044061,30]
[341070837,1730329849506,-500.0,0.00044061,30]
[341070838,1730329849515,-500.0,0.00044061,30]
[341070839,1730329849525,-500.0,0.00044061,30]
[341070840,1730329849534,-500.0,0.00044061,30]
[341070841,1730329849544,-511.14856032,0.00044061,30]
[341070842,1730329849553,-500.0,0.00044061,30]
[341070843,1730329849562,-500.0,0.00044061,30]
[341070844,1730329849571,-500.0,0.00044061,30]
[341070845,1730329849581,-484.67188265,0.00044061,30]
[341070846,1730329849591,-500.0,0.00044061,30]
[341070848,1730329849600,-431.83931505,0.00044061,30]
[341070850,1730329849609,-1030.77,0.00044061,30]
[341070852,1730329849618,-1030.77,0.00044061,30]
[341070853,1730329849627,-1030.77,0.00044061,30]
[341070854,1730329849636,-1030.77,0.00044061,30]
[341070855,1730329849646,-1030.77,0.00044061,30]
[341070856,1730329849656,-1030.77,0.00044061,30]
[341070857,1730329849665,-1030.77,0.00044061,30]
[341070858,1730329849676,-1030.77,0.00044061,30]
[341070859,1730329849685,-1030.77,0.00044061,30]
[341070860,1730329849695,-1030.77,0.00044061,30]
[341070861,1730329849705,-1030.77,0.00044061,30]
[341070862,1730329849715,-1030.77,0.00044061,30]
[341070863,1730329849724,-1030.77,0.00044061,30]
[341070864,1730329849734,-1030.77,0.00044061,30]
[341070865,1730329849745,-1030.77,0.00044061,30]
[341070866,1730329849755,-1030.77,0.00044061,30]
[341070867,1730329849764,-1030.77,0.00044061,30]
[341070868,1730329849774,-1030.77,0.00044061,30]
[341070869,1730329849784,-1030.77,0.00044061,30]
[341070870,1730329849793,-500.0,0.00044061,30]
[341070871,1730329849803,-1030.77,0.00044061,30]
[341070872,1730329849812,-500.0,0.00044061,30]
[341070874,1730329849822,-1030.77,0.00044061,30]
[341070875,1730329849832,-500.0,0.00044061,30]
[341070876,1730329849842,-1030.77,0.00044061,30]
[341070877,1730329849851,-500.0,0.00044061,30]
[341070878,1730329849861,-1030.77,0.00044061,30]
[341070879,1730329849871,-500.0,0.00044061,30]
[341070880,1730329849881,-500.0,0.00044061,30]
[341070881,1730329849891,-1030.79614,0.00044061,30]
[341070882,1730329849900,-528.4128565,0.00044061,30]
[341070883,1730329849910,-591.27310094,0.00044061,30]
[341070884,1730329849920,-513.64351411,0.00044061,30]
[341070885,1730329849929,-523.38106539,0.00044061,30]
[341070886,1730329849939,-500.0,0.00044061,30]
[341070887,1730329849949,-548.86004455,0.00044061,30]
[341070888,1730329849959,-500.0,0.00044061,30]
[341070889,1730329849968,-500.0,0.00044061,30]
[341070890,1730329849978,-505.37324805,0.00044061,30]
[341070891,1730329849987,-500.0,0.00044061,30]
[341070892,1730329849996,-500.0,0.00044061,30]
[341070893,1730329850006,-500.0,0.00044061,30]
[341070894,1730329850015,-328.50398571,0.00044061,30]
[341070895,1730329850025,-500.0,0.00044061,30]
[341070896,1730329850036,-567.12090064,0.00044061,30]
[341070897,1730329850048,-500.0,0.00044061,30]
[341070898,1730329850059,-500.0,0.00044061,30]
[341070899,1730329850068,-172.66317637,0.00044061,30]
[341070900,1730329850078,-500.0,0.00044061,30]
[341070901,1730329850087,-551.67432641,0.00044061,30]
[341070902,1730329850096,-748.99,0.00044061,30]
[341070903,1730329850106,-748.99,0.00044061,30]
[341070904,1730329850115,-748.99,0.00044061,30]
[341070905,1730329850125,-500.0,0.00044061,30]
[341070907,1730329850135,-748.99,0.00044061,30]
[341070908,1730329850145,-536.00923874,0.00044061,30]
[341070909,1730329850154,-748.99,0.00044061,30]
[341070910,1730329850164,-748.99,0.00044061,30]
[341070912,1730329850174,-748.99,0.00044061,30]
[341070913,1730329850183,-748.99,0.00044061,30]
[341070914,1730329850193,-748.99,0.00044061,30]
[341070915,1730329850203,-748.99,0.00044061,30]
[341070916,1730329850214,-748.99,0.00044061,30]
[341070917,1730329850223,-539.03323088,0.00044061,30]
[341070918,1730329850233,-748.99,0.00044061,30]
[341070919,1730329850243,-748.99,0.00044061,30]
[341070920,1730329850253,-748.99,0.00044061,30]
[341070921,1730329850263,-748.99,0.00044061,30]
[341070922,1730329850272,-748.99,0.00044061,30]
[341070923,1730329850282,-748.99,0.00044061,30]
[341070924,1730329850293,-748.99,0.00044061,30]
[341070925,1730329850302,-748.99,0.00044061,30]
[341070926,1730329850312,-748.99,0.00044061,30]
[341070927,1730329850321,-748.99,0.00044061,30]
[341070928,1730329850330,-748.99,0.00044061,30]
[341070929,1730329850436,-748.99,0.00044061,30]
[341070930,1730329850447,-749.22154873,0.00044061,30]
[341070931,1730329850456,-500.0,0.00044061,30]
[341070932,1730329850466,-500.0,0.00044061,30]
[341070933,1730329850476,-413.39661527,0.00044061,30]
[341070934,1730329850485,-500.0,0.00044061,30]
[341070935,1730329850494,-558.02636758,0.00044061,30]
[341070936,1730329850504,-500.0,0.00044061,30]
[341070937,1730329850513,-500.0,0.00044061,30]
[341070938,1730329850522,-500.0,0.00044061,30]
[341070939,1730329850531,-500.0,0.00044061,30]
[341070940,1730329850540,-507.26939237,0.00044061,30]
[341070941,1730329850550,-500.0,0.00044061,30]
[341070942,1730329850559,-500.0,0.00044061,30]
[341070943,1730329850568,-500.0,0.00044061,30]
[341070944,1730329850577,-500.0,0.00044061,30]
[341070945,1730329850586,-500.0,0.00044061,30]
[341070946,1730329850595,-500.0,0.00044061,30]
[341070947,1730329850605,-500.0,0.00044061,30]
[341070948,1730329850614,-340.78730881,0.00044061,30]
[341070949,1730329850623,-500.0,0.00044061,30]
[341070950,1730329850632,-500.0,0.00044061,30]
[341070951,1730329850641,-500.0,0.00044061,30]
[341070952,1730329850651,-511.90861697,0.00044061,30]
[341070953,1730329850660,-500.0,0.00044061,30]
[341070954,1730329850669,-500.0,0.00044061,30]
[341070955,1730329850678,-500.0,0.00044061,30]
[341070956,1730329850687,-527.97874025,0.00044061,30]
[341070957,1730329850696,-500.0,0.00044061,30]
[341070958,1730329850705,-500.0,0.00044061,30]
[341070959,1730329850716,-522.6833183,0.00044061,30]
[341070960,1730329850725,-500.0,0.00044061,30]
[341070961,1730329850734,-377.51079563,0.00044061,30]
[341070962,1730329850743,-500.0,0.00044061,30]
[341070963,1730329850752,-549.7762886,0.00044061,30]
[341070964,1730329850761,-540.15615479,0.00044061,30]
[341070965,1730329850770,-500.0,0.00044061,30]
[341070966,1730329850779,-273.85826273,0.00044061,30]
[341070967,1730329850789,-500.0,0.00044061,30]
[341070968,1730329850798,-544.43083774,0.00044061,30]
[341070969,1730329850807,-500.0,0.00044061,30]
[341070970,1730329850817,-532.96699612,0.00044061,30]
[341070971,1730329850826,-526.24980947,0.00044061,30]
[341070972,1730329850835,-641.9924393,0.00044061,30]
[341070973,1730329850844,-503.84313723,0.00044061,30]
[341070974,1730329850853,-552.97303283,0.00044061,30]
[341070975,1730329850862,-544.96713988,0.00044061,30]
[341070976,1730329850872,-517.16510841,0.00044061,30]
[341070977,1730329850881,-528.9450662,0.00044061,30]
[341070978,1730329850890,-583.34727769,0.00044061,30]
[341070979,1730329850901,-550.3787014,0.00044061,30]
[341070980,1730329850912,-566.56503198,0.00044061,30]
[341070981,1730329850920,-514.91987993,0.00044061,30]
[341070982,1730329850931,-500.0,0.00044061,30]
[341070983,1730329850941,-545.2445294,0.00044061,30]
[341070984,1730329850952,-562.38741375,0.00044061,30]
[341070985,1730329850963,-500.0,0.00044061,30]
[341070986,1730329850971,-500.0,0.00044061,30]
[341070987,1730329850981,-555.44424158,0.00044061,30]
[341070988,1730329850990,-500.0,0.00044061,30]
[341070989,1730329850999,-500.0,0.00044061,30]
[341070990,1730329851008,-500.0,0.00044061,30]
[341070991,1730329851017,-450.94727379,0.00044061,30]
[341070992,1730329851026,-517.79613567,0.00044061,30]
[341070993,1730329851035,-970.5,0.00044061,120]
[341070994,1730329851047,-500.0,0.00044061,30]
[341070995,1730329851057,-509.91333405,0.00044061,30]
[341070996,1730329851067,-300.0,0.00044061,30]
[341070997,1730329851078,-355.25877252,0.00044061,30]
[341070998,1730329851088,-500.0,0.00044061,30]
[341070999,1730329851099,-500.0,0.00044061,30]
[341071000,1730329851108,-500.0,0.00044061,30]
[341071001,1730329851117,-603.88138249,0.00044061,30]
[341071002,1730329851126,-290.49018572,0.00044061,30]
[341071003,1730329851136,-478.65301073,0.00044061,30]
[341071004,1730329851147,-500.0,0.00044061,30]
[341071005,1730329851157,-500.0,0.00044061,30]
[341071006,1730329851167,-500.0,0.00044061,30]
[341071007,1730329851176,-500.0,0.00044061,7]
[341071008,1730329851186,-500.0,0.00044061,7]
[341071009,1730329851195,-429.30065182,0.00044061,7]
[341071010,1730329851204,-500.0,0.00044061,30]
[341071011,1730329851213,-500.0,0.00044061,30]
[341071012,1730329851222,-500.0,0.00044061,30]
[341071013,1730329851231,-500.0,0.00044061,30]
[341071014,1730329851240,-500.0,0.00044061,30]
[341071015,1730329851249,-500.0,0.00044061,30]
[341071016,1730329851259,-500.0,0.00044061,30]
[341071017,1730329851268,-500.0,0.00044061,30]
[341071018,1730329851277,-500.0,0.00044061,30]
[341071019,1730329851286,-500.0,0.00044061,30]
[341071020,1730329851295,-500.0,0.00044061,30]
[341071021,1730329851304,-500.0,0.00044061,30]
[341071022,1730329851313,-500.0,0.00044061,30]
[341071023,1730329851323,-500.0,0.00044061,30]
[341071024,1730329851332,-500.0,0.00044061,30]
[341071025,1730329851341,-500.0,0.00044061,30]
[341071026,1730329851350,-500.0,0.00044061,30]
[341071027,1730329851359,-500.0,0.00044061,30]
[341071028,1730329851368,-500.0,0.00044061,30]
[341071029,1730329851378,-593.42654428,0.00044061,30]
[341071030,1730329851387,-500.0,0.00044061,30]
[341071031,1730329851396,-500.0,0.00044061,30]
[341071032,1730329851405,-509.76912938,0.00044061,30]
[341071033,1730329851414,-500.0,0.00044061,30]
[341071034,1730329851423,-606.67,0.00044061,30]
[341071035,1730329851432,-500.0,0.00044061,30]
[341071036,1730329851441,-596.03664736,0.00044061,30]
[341071037,1730329851451,-500.0,0.00044061,30]
[341071038,1730329851460,-500.0,0.00044061,30]
[341071039,1730329851470,-500.0,0.00044061,30]
[341071040,1730329851479,-500.0,0.00044061,30]
[341071041,1730329851489,-365.12,0.00044061,30]
[341071042,1730329851498,-500.0,0.00044061,30]
[341071043,1730329851507,-500.0,0.00044061,30]
[341071044,1730329851516,-500.0,0.00044061,30]
[341071045,1730329851524,-500.0,0.00044061,30]
[341071046,1730329851533,-500.0,0.00044061,30]
[341071047,1730329851542,-500.0,0.00044061,30]
[341071048,1730329851551,-195.64591095,0.00044061,30]
[341071049,1730329851561,-641.52,0.00044061,30]
[341071050,1730329851570,-500.0,0.00044061,30]
[341071051,1730329851579,-561.34197121,0.00044061,30]
[341071052,1730329851588,-500.0,0.00044061,30]
[341071053,1730329851598,-500.0,0.00044061,30]
[341071054,1730329851607,-500.0,0.00044061,30]
[341071055,1730329851617,-500.0,0.00044061,30]
[341071056,1730329851625,-500.0,0.00044061,30]
[341071057,1730329851634,-500.0,0.00044061,30]
[341071058,1730329851644,-500.0,0.00044061,30]
[341071059,1730329851652,-500.0,0.00044061,30]
[341071060,1730329851661,-500.0,0.00044061,30]
[341071061,1730329851671,-500.0,0.00044061,30]
[341071062,1730329851681,-500.0,0.00044061,30]
[341071063,1730329851691,-500.0,0.00044061,30]
[341071064,1730329851701,-500.0,0.00044061,30]
[341071065,1730329851711,-500.0,0.00044061,30]
[341071066,1730329851722,-500.0,0.00044061,30]
[341071067,1730329851731,-500.0,0.00044061,30]
[341071068,1730329851741,-500.0,0.00044061,30]
[341071069,1730329851752,-500.0,0.00044061,30]
[341071070,1730329851762,-500.0,0.00044061,30]
[341071071,1730329851771,-500.0,0.00044061,30]
[341071072,1730329851781,-500.0,0.00044061,30]
[341071073,1730329851792,-500.0,0.00044061,30]
[341071074,1730329851802,-500.0,0.00044061,30]
[341071075,1730329851811,-500.0,0.00044061,30]
[341071076,1730329851822,-488.06636592,0.00044061,30]
[341071077,1730329851835,-500.0,0.00044061,30]
[341071078,1730329851845,-500.0,0.00044061,30]
[341071079,1730329851855,-500.0,0.00044061,30]
[341071080,1730329851865,-500.0,0.00044061,30]
[341071081,1730329851875,-500.0,0.00044061,30]
[341071082,1730329851884,-500.0,0.00044061,30]
[341071083,1730329851895,-500.0,0.00044061,30]
[341071084,1730329851906,-500.0,0.00044061,30]
[341071085,1730329851915,-500.0,0.00044061,30]
[341071086,1730329851926,-500.0,0.00044061,30]
[341071087,1730329851937,-500.0,0.00044061,30]
[341071088,1730329851947,-500.0,0.00044061,30]
[341071089,1730329851960,-418.598794,0.00044061,30]
[341071090,1730329851969,-500.0,0.00044061,30]
[341071091,1730329851978,-500.0,0.00044061,30]
[341071092,1730329851988,-500.0,0.00044061,30]
[341071093,1730329851998,-500.0,0.00044061,30]
[341071094,1730329852007,-500.0,0.00044061,30]
[341071095,1730329852016,-500.0,0.00044061,30]
[341071096,1730329852027,-500.0,0.00044061,30]
[341071097,1730329852037,-500.0,0.00044061,30]
[341071098,1730329852051,-500.0,0.00044061,30]
[341071099,1730329852062,-500.0,0.00044061,30]
[341071100,1730329852071,-504.43051593,0.00044061,30]
[341071101,1730329852081,-500.0,0.00044061,30]
[341071102,1730329852090,-500.0,0.00044061,30]
[341071103,1730329852099,-500.0,0.00044061,30]
[341071104,1730329852108,-500.0,0.00044061,30]
[341071105,1730329852118,-500.0,0.00044061,30]
[341071106,1730329852127,-500.0,0.00044061,30]
[341071107,1730329852136,-500.0,0.00044061,30]
[341071108,1730329852146,-500.0,0.00044061,30]
[341071109,1730329852155,-172.68874813,0.00044061,30]
[341071110,1730329852164,-500.0,0.00044061,30]
[341071111,1730329852174,-445.44,0.00044061,30]
[341071112,1730329852183,-500.0,0.00044061,30]
[341071113,1730329852192,-509.24,0.00044061,30]
[341071114,1730329852201,-579.69843868,0.00044061,30]
[341071115,1730329852211,-500.0,0.00044061,30]
[341071116,1730329852220,-500.0,0.00044061,30]
[341071117,1730329852230,-500.0,0.00044061,30]
[341071118,1730329852241,-500.0,0.00044061,30]
[341071119,1730329852251,-500.0,0.00044061,30]
[341071120,1730329852261,-338.68969913,0.00044061,30]
[341071121,1730329852271,-500.0,0.00044061,30]
[341071122,1730329852281,-557.437526,0.00044061,30]
[341071123,1730329852291,-527.83516668,0.00044061,30]
[341071124,1730329852300,-500.0,0.00044061,30]
[341071125,1730329852310,-500.0,0.00044061,30]
[341071126,1730329852319,-367.91707144,0.00044061,30]
[341071127,1730329852329,-500.0,0.00044061,30]
[341071128,1730329852338,-519.45,0.00044061,30]
[341071129,1730329852348,-520.07269083,0.00044061,30]
[341071130,1730329852357,-500.0,0.00044061,30]
[341071131,1730329852366,-500.0,0.00044061,30]
[341071132,1730329852376,-500.0,0.00044061,30]
[341071133,1730329852385,-500.0,0.00044061,30]
[341071134,1730329852395,-500.0,0.00044061,30]
[341071135,1730329852404,-500.0,0.00044061,30]
[341071136,1730329852413,-592.78287435,0.00044061,30]
[341071137,1730329852423,-500.0,0.00044061,30]
[341071138,1730329852431,-500.0,0.00044061,30]
[341071139,1730329852441,-587.19219592,0.00044061,30]
[341071140,1730329852450,-500.0,0.00044061,30]
[341071141,1730329852459,-500.0,0.00044061,30]
[341071142,1730329852470,-296.85386184,0.00044061,30]
[341071143,1730329852479,-535.61961014,0.00044061,30]
[341071144,1730329852488,-500.0,0.00044061,30]
[341071145,1730329852498,-301.8,0.00044061,30]
[341071146,1730329852507,-500.0,0.00044061,30]
[341071147,1730329852516,-514.32191367,0.00044061,30]
[341071148,1730329852526,-500.0,0.00044061,30]
[341071149,1730329852535,-440.82,0.00044061,30]
[341071150,1730329852544,-500.0,0.00044061,30]
[341071151,1730329852554,-426.97,0.00044061,30]
[341071152,1730329852563,-500.0,0.00044061,30]
[341071153,1730329852572,-518.10446879,0.00044061,30]
[341071154,1730329852582,-513.47298625,0.00044061,30]
[341071155,1730329852591,-504.28702997,0.00044061,30]
[341071156,1730329852600,-500.0,0.00044061,30]
[341071157,1730329852610,-507.57361811,0.00044061,30]
[341071158,1730329852619,-510.50837479,0.00044061,30]
[341071159,1730329852628,-507.13354622,0.00044061,30]
[341071160,1730329852638,-634.25,0.00044061,30]
[341071161,1730329852647,-500.0,0.00044061,30]
[341071162,1730329852656,-537.5472946,0.00044061,30]
[341071163,1730329852665,-500.0,0.00044061,30]
[341071164,1730329852674,-500.0,0.00044061,30]
[341071165,1730329852684,-500.0,0.00044061,30]
[341071166,1730329852693,-256.72,0.00044061,30]
[341071167,1730329852703,-500.0,0.00044061,2]
[341071168,1730329852714,-500.0,0.00044061,2]
[341071169,1730329852723,-500.0,0.00044061,2]
[341071170,1730329852732,-500.0,0.00044061,2]
[341071171,1730329852742,-500.0,0.00044061,2]
[341071172,1730329852751,-512.32859764,0.00044061,30]
[341071173,1730329852760,-500.0,0.00044061,30]
[341071174,1730329852769,-500.0,0.00044061,30]
[341071175,1730329852778,-226.39048809,0.00044061,30]
[341071176,1730329852788,-500.0,0.00044061,2]
[341071177,1730329852798,-500.0,0.00044061,2]
[341071178,1730329852807,-500.0,0.00044061,2]
[341071179,1730329852816,-500.0,0.00044061,2]
[341071180,1730329852916,-500.0,0.00044061,2]
[341071181,1730329852926,-500.0,0.00044061,2]
[341071182,1730329852936,-500.0,0.00044061,30]
[341071183,1730329852945,-500.0,0.00044061,2]
[341071184,1730329852955,-500.0,0.00044061,2]
[341071185,1730329852964,-500.0,0.00044061,2]
[341071186,1730329852974,-623.53683846,0.00044061,2]
[341071187,1730329852983,-395.50962053,0.00044061,30]
[341071188,1730329852992,-500.0,0.00044061,30]
[341071189,1730329853002,-500.0,0.00044061,30]
[341071190,1730329853011,-500.0,0.00044061,30]
[341071191,1730329853020,-500.0,0.00044061,30]
[341071192,1730329853029,-500.0,0.00044061,30]
[341071193,1730329853039,-500.0,0.00044061,30]
[341071194,1730329853049,-500.0,0.00044061,30]
[341071195,1730329853058,-509.12200053,0.00044061,30]
[341071196,1730329853067,-512.18492153,0.00044061,30]
[341071197,1730329853076,-500.0,0.00044061,30]
[341071198,1730329853086,-500.0,0.00044061,30]
[341071199,1730329853095,-634.34,0.00044061,30]
[341071200,1730329853104,-504.74635801,0.00044061,30]
[341071201,1730329853115,-500.0,0.00044061,30]
[341071202,1730329853124,-500.0,0.00044061,30]
[341071203,1730329853133,-500.0,0.00044061,30]
[341071204,1730329853142,-500.0,0.00044061,30]
[341071205,1730329853152,-500.0,0.00044061,30]
[341071206,1730329853161,-500.0,0.00044061,30]
[341071207,1730329853171,-500.0,0.00044061,30]
[341071208,1730329853180,-548.83491956,0.00044061,30]
[341071209,1730329853189,-500.0,0.00044061,30]
[341071210,1730329853198,-500.0,0.00044061,30]
[341071211,1730329853207,-500.0,0.00044061,30]
[341071212,1730329853220,-577.5682307,0.00044061,30]
[341071213,1730329853229,-496.5,0.00044061,30]
[341071214,1730329853239,-500.0,0.00044061,30]
[341071215,1730329853248,-500.0,0.00044061,30]
[341071216,1730329853257,-500.0,0.00044061,30]
[341071217,1730329853267,-431.70521097,0.00044061,30]
[341071218,1730329853276,-500.0,0.00044061,30]
[341071219,1730329853286,-545.83218121,0.00044061,30]
[341071220,1730329853295,-500.0,0.00044061,30]
[341071221,1730329853305,-500.0,0.00044061,30]
[341071222,1730329853314,-500.0,0.00044061,30]
[341071223,1730329853324,-500.0,0.00044061,30]
[341071224,1730329853333,-500.0,0.00044061,30]
[341071225,1730329853343,-500.0,0.00044061,30]
[341071226,1730329853353,-516.84820165,0.00044061,30]
[341071227,1730329853362,-500.0,0.00044061,30]
[341071228,1730329853372,-500.0,0.00044061,30]
[341071229,1730329853382,-512.33376844,0.00044061,30]
[341071230,1730329853391,-500.0,0.00044061,30]
[341071231,1730329853400,-500.0,0.00044061,30]
[341071232,1730329853410,-500.0,0.00044061,30]
[341071233,1730329853419,-500.0,0.00044061,30]
[341071234,1730329853429,-500.0,0.00044061,30]
[341071235,1730329853438,-533.24915124,0.00044061,30]
[341071236,1730329853448,-500.0,0.00044061,30]
[341071237,1730329853457,-262.1,0.00044061,30]
[341071238,1730329853468,-500.0,0.00044061,30]
[341071239,1730329853477,-537.16080052,0.00044061,30]
[341071240,1730329853487,-521.30586492,0.00044061,30]
[341071241,1730329853497,-500.0,0.00044061,30]
[341071242,1730329853506,-413.99038546,0.00044061,30]
[341071243,1730329853516,-500.0,0.00044061,30]
[341071244,1730329853525,-500.0,0.00044061,30]
[341071245,1730329853535,-500.0,0.00044061,30]
[341071246,1730329853544,-500.0,0.00044061,30]
[341071247,1730329853554,-508.18225717,0.00044061,30]
[341071248,1730329853563,-572.67987278,0.00044061,30]
[341071249,1730329853573,-500.0,0.00044061,30]
[341071250,1730329853583,-616.66582076,0.00044061,30]
[341071251,1730329853592,-500.0,0.00044061,30]
[341071252,1730329853602,-509.13050206,0.00044061,30]
[341071253,1730329853612,-500.0,0.00044061,30]
[341071254,1730329853621,-500.0,0.00044061,30]
[341071255,1730329853631,-500.0,0.00044061,30]